[Event "ROU-ch Men 2018"]
[Site "Olanesti"]
[Date "2018.05.16"]
[Round "3"]
[White "Craciun, Ovidiu"]
[Black "Dinca, Ovidiu"]
[Result "1-0"]
[ECO "B42"]
[WhiteElo "1931"]
[BlackElo "1863"]
[Annotator "NA"]
[PlyCount "101"]
[EventDate "2018.??.??"]
[EventType "swiss"]
[EventCountry "ROU"]
[SourceTitle "playchess.com"]
[Source "ChessBase"]
[SourceQuality "1"]
[TimeControl "40/5400+30:1800+30"]

1. e4 {[%emt 0:00:54]} c5 {[%emt 0:00:03]} 2. Nf3 {[%emt 0:00:19]} e6 {[%emt 0:00:05]} 3. d4 {[%emt 0:00:06]} cxd4 {[%emt 0:00:03]} 4. Nxd4 {[%emt 0:00:09]} a6 {[%emt 0:00:03]} 5. Bd3 {[%emt 0:00:41]} Nf6 {[%emt 0:00:11]} 6. O-O {[%emt 0:06:27]} d5 {[%emt 0:01:56]} 7. exd5 $11 {[%emt 0:15:26]} Nxd5 {[%emt 0:00:08]} 8. c3 {[%emt 0:01:13]} Qc7 {[%emt 0:04:25]} 9. f4 {[%emt 0:02:13]} Bd6 {[%emt 0:00:39]} 10. Qg4 {[%emt 0:00:33]} g6 {[%emt 0:01:58]} 11. Qh4 {[%emt 0:01:30]} Be7 {[%emt 0:06:17]} 12. Qf2 {[%emt 0:09:02]} Nc6 {[%emt 0:00:39]} 13. Bd2 {[%emt 0:10:15]} Nxd4 {[%emt 0:03:44]} 14. cxd4 {[%emt 0:00:03]} Nb4 {[%emt 0:12:30]} 15. Bxb4 {[%emt 0:02:21]} Bxb4 {[%emt 0:00:08]} 16. Nd2 {[%emt 0:00:48]} O-O {[%emt 0:01:14]} 17. Rac1 {[%emt 0:06:31]} Qd8 {[%emt 0:03:46]} 18. Nf3 {[%emt 0:10:17]} Qd6 {[%emt 0:02:08]} 19. Qh4 {[%emt 0:05:46]} Bd7 {[%emt 0:10:15]} 20. Rfd1 {[%emt 0:06:30]} Bc6 {[%emt 0:00:35]} 21. Be4 {[%emt 0:00:51]} f6 {[%emt 0:15:21]} 22. Bxc6 {[%emt 0:01:49]} bxc6 {[%emt 0:00:04]} 23. Rc4 {[%emt 0:01:09]} Ba5 {[%emt 0:02:48]} 24. Rdc1 {[%emt 0:00:44]} Rac8 {[%emt 0:00:16]} 25. h3 {[%emt 0:04:24]} Bb6 {[%emt 0:00:29]} 26. Kh1 {[%emt 0:02:04]} Kg7 {[%emt 0:00:28]} 27. Qe1 {[%emt 0:04:30]} Rfd8 {[%emt 0:19:02]} 28. Qe4 {[%emt 0:00:24]} c5 {[%emt 0:04:33]} 29. b4 {[%emt 0:00:46]} Qd5 {[%emt 0:01:03]} 30. Qe2 {[%emt 0:00:39]} Qf5 {[%emt 0:00:43]} 31. dxc5 {[%emt 0:01:47]} Bc7 {[%emt 0:00:07]} 32. Qc2 {[%emt 0:00:46]} Rd3 {[%emt 0:01:05]} 33. Ne1 {[%emt 0:01:05]} Rcd8 {[%emt 0:00:54]} 34. Nxd3 {[%emt 0:00:10]} Rxd3 {[%emt 0:00:04]} 35. Qf2 {[%emt 0:00:13]} g5 {[%emt 0:01:05]} 36. Rd4 {[%emt 0:02:32]} Rxd4 {[%emt 0:01:54]} 37. Qxd4 {[%emt 0:00:02]} Bxf4 {[%emt 0:00:09]} 38. Rf1 {[%emt 0:00:18]} e5 {[%emt 0:00:28]} 39. Qd5 {[%emt 0:00:44]} Qc2 {[%emt 0:00:42]} 40. c6 {[%emt 0:00:00]} e4 {[%emt 0:00:53]} 41. Qd7+ {[%emt 0:01:04]} Kh6 {[%emt 0:03:13]} 42. c7 {[%emt 0:02:52]} Qe2 {[%emt 0:01:08]} 43. Rxf4 {[%emt 0:03:20]} gxf4 {[%emt 0:02:12]} 44. Qg4 {[%emt 0:00:37]} f3 {[%emt 0:12:05]} 45. c8=Q {[%emt 0:01:03]} fxg2+ {[%emt 0:00:18]} 46. Qxg2 {[%emt 0:00:07]} Qd1+ {[%emt 0:00:10]} 47. Kh2 {[%emt 0:01:25]} Qd6+ {[%emt 0:00:06]} 48. Kg1 {[%emt 0:01:00]} Qd4+ {[%emt 0:04:12]} 49. Qf2 {[%emt 0:01:08]} e3 {[%emt 0:00:42]} 50. Qf8+ {[%emt 0:00:26]} Kg5 {[%emt 0:00:51]} 51. Qg7+ {[%emt 0:00:27]} 1-0

[Event "ROU-ch Men 2018"]
[Site "Olanesti"]
[Date "2018.05.16"]
[Round "3"]
[White "Bobocea, Laurentiu-Vlad"]
[Black "Pribeanu, Mihail-Dacian"]
[Result "1/2-1/2"]
[ECO "E91"]
[WhiteElo "1853"]
[BlackElo "2119"]
[Annotator "NA"]
[PlyCount "72"]
[EventDate "2018.??.??"]
[EventType "swiss"]
[EventCountry "ROU"]
[SourceTitle "playchess.com"]
[Source "ChessBase"]
[SourceQuality "1"]
[TimeControl "40/5400+30:1800+30"]

1. d4 {[%emt 0:00:00]} Nf6 {[%emt 0:00:58]} 2. c4 {[%emt 0:00:00]} g6 3. Nc3 {[%emt 0:00:00]} Bg7 {[%emt 0:00:21]} 4. e4 {[%emt 0:00:08]} d6 {[%emt 0:00:13]} 5. Nf3 {[%emt 0:00:49]} O-O {[%emt 0:00:21]} 6. Be2 {[%emt 0:00:13]} Nbd7 {[%emt 0:00:41]} 7. O-O {[%emt 0:00:46]} e5 {[%emt 0:00:15]} 8. d5 {[%emt 0:06:18]} Nc5 9. Qc2 {[%emt 0:00:36]} a5 {[%emt 0:00:34]} 10. Bg5 {[%emt 0:01:32] LiveBook: 368 Games} Bd7 {[%emt 0:02:59] E94: King's Indian: Classical: 6 Be2 e5 7 0-0: Various Black 7th moves} (10... h6 11. Be3 Ng4 12. Bxc5 dxc5 13. h3 Nf6 14. Nxe5 Nxd5 15. cxd5 Bxe5 16. f4 Bd4+ 17. Kh2 g5 18. e5 gxf4 19. e6 Qh4 20. Bg4 h5 21. Bf3 Qg3+ {½-½ (69) Kasimdzhanov,R (2712)-Mista,A (2597) Trzcianka 2015}) 11. Nd2 {[%emt 0:04:04]} Qe8 {[%emt 0:01:27]} 12. b3 {[%emt 0:01:46]} Kh8 {[%emt 0:02:48]} (12... h6 $11 {keeps the balance.} 13. Be3 Na6) 13. a3 {[%emt 0:02:18]} Ng8 {[%emt 0:00:32]} 14. b4 {[%emt 0:05:50]} axb4 $146 {[%emt 0:03:58]} ({Predecessor:} 14... Na6 $142 15. Rab1 f5 16. f3 axb4 17. axb4 Bh6 18. Bh4 {0-1 (38) Banas,J (2306)-Efroimski,M (2222) Zagreb 2011}) 15. axb4 {[%emt 0:00:09]} Rxa1 {[%emt 0:00:53]} 16. Rxa1 {[%emt 0:00:08]} Na6 {[%emt 0:00:21]} 17. Qb3 {[%emt 0:04:07]} f5 18. f3 {[%emt 0:02:42]} Bh6 $16 {[%emt 0:05:01]} 19. Bxh6 {[%emt 0:00:39]} Nxh6 {[%emt 0:00:06]} 20. c5 {[%emt 0:03:00]} Nb8 21. cxd6 {[%emt 0:10:27]} cxd6 {[%emt 0:05:13]} 22. Nc4 {[%emt 0:00:33]} Qd8 {[%emt 0:04:39]} 23. b5 {[%emt 0:24:50]} fxe4 {[%emt 0:00:33]} 24. Nxe4 {[%emt 0:01:39]} Nf5 {[%emt 0:02:29]} 25. Qb4 {[%emt 0:07:32]} Nd4 {[%emt 0:06:10]} 26. Bd1 {[%emt 0:00:41]} Bxb5 {[%emt 0:08:56]} 27. Nexd6 {[%emt 0:08:15]} Qe7 28. Nxe5 {[%emt 0:05:46]} Ne2+ {[%emt 0:12:08]} 29. Kf2 {[%emt 0:02:11]} Qxe5 {[%emt 0:03:13]} 30. Nxb5 {[%emt 0:00:13]} Re8 {[%emt 0:17:21]} 31. Qe4 {[%emt 0:01:58]} Nf4 32. Qxe5+ {[%emt 0:00:51]} Rxe5 {[%emt 0:03:02]} 33. Ra8 {[%emt 0:04:07]} Re8 {[%emt 0:00:15]} 34. Bb3 {[%emt 0:00:46]} Kg7 {[%emt 0:02:17]} 35. Nd6 {[%emt 0:00:54]} Re2+ {[%emt 0:01:25]} 36. Kf1 {[%emt 0:00:59]} Nd7 1/2-1/2

[Event "ROU-ch Men 2018"]
[Site "Olanesti"]
[Date "2018.05.16"]
[Round "3"]
[White "Toma, Mihail"]
[Black "Rusan, Paul-Cristian"]
[Result "1-0"]
[ECO "A80"]
[WhiteElo "1835"]
[BlackElo "2213"]
[Annotator "NA"]
[PlyCount "95"]
[EventDate "2018.??.??"]
[EventType "swiss"]
[EventCountry "ROU"]
[SourceTitle "playchess.com"]
[Source "ChessBase"]
[SourceQuality "1"]
[TimeControl "40/5400+30:1800+30"]

1. d4 {[%emt 0:00:00]} f5 {[%emt 0:00:12]} 2. Bg5 {[%emt 0:00:00]} d6 {[%emt 0:01:56]} 3. Nc3 {[%emt 0:01:46]} h6 {[%emt 0:00:47]} 4. Bf4 Nf6 {[%emt 0:01:31]} 5. Qd3 {[%emt 0:09:57]} Nc6 {[%emt 0:07:11]} 6. d5 {[%emt 0:05:34]} e5 {[%emt 0:01:15]} (6... Ne5 $11 7. Bxe5 dxe5) 7. dxc6 {[%emt 0:00:32]} exf4 {[%emt 0:00:28]} (7... bxc6 {keeps fighting.} 8. Bg3 Be6) 8. cxb7 {[%emt 0:00:07]} Bxb7 {[%emt 0:00:12]} 9. Qb5+ {[%emt 0:00:07]} ({Inferior is} 9. Qxf5 Qd7 $14) 9... c6 {[%emt 0:06:00]} (9... Kf7 $142) 10. Qxb7 {[%emt 0:00:17]} Rc8 {[%emt 0:00:23]} 11. Nf3 {[%emt 0:02:43]} g6 {[%emt 0:04:25]} 12. Nd4 {[%emt 0:01:46]} Rh7 {[%emt 0:00:47]} 13. Qa6 {[%emt 0:04:08]} Qd7 {[%emt 0:02:59]} 14. g3 {[%emt 0:03:43]} fxg3 {[%emt 0:01:43]} 15. hxg3 {[%emt 0:00:20]} d5 {[%emt 0:01:10]} 16. e3 {[%emt 0:02:27]} Bb4 {[%emt 0:03:09]} 17. Bd3 {[%emt 0:01:39]} Ne4 {[%emt 0:01:07]} 18. Bxe4 {[%emt 0:01:53]} fxe4 {[%emt 0:01:04]} 19. a3 {[%emt 0:01:11]} Bxc3+ {[%emt 0:02:36]} 20. bxc3 {[%emt 0:00:06]} h5 {[%emt 0:00:16]} 21. Rb1 {[%emt 0:03:40]} Rf7 {[%emt 0:03:07]} 22. Rh4 {[%emt 0:03:32]} Kf8 {[%emt 0:07:23]} 23. Rf4 {[%emt 0:03:04]} Rc7 {[%emt 0:00:27]} 24. Rxf7+ {[%emt 0:01:24]} Kxf7 {[%emt 0:01:43]} 25. Rb8 {[%emt 0:01:48]} Kg7 {[%emt 0:06:47]} 26. Qa5 {[%emt 0:07:00]} Kf7 {[%emt 0:12:02]} 27. Rh8 {[%emt 0:02:41]} Kg7 {[%emt 0:00:29]} 28. Qxc7 {[%emt 0:03:35]} Qxc7 {[%emt 0:00:10]} 29. Ne6+ {[%emt 0:00:04]} Kxh8 {[%emt 0:00:13]} 30. Nxc7 {[%emt 0:00:02]} Kg7 {[%emt 0:00:29]} 31. Ne6+ {[%emt 0:00:01]} Kf6 {[%emt 0:00:17]} 32. Nd8 {[%emt 0:00:13]} c5 {[%emt 0:01:37]} 33. Nc6 {[%emt 0:00:31]} a6 {[%emt 0:01:07]} 34. Nb8 {[%emt 0:00:48]} Ke6 {[%emt 0:00:36]} 35. Nxa6 {[%emt 0:00:34]} Kd6 {[%emt 0:00:03]} 36. Ke2 {[%emt 0:04:51]} Kc6 {[%emt 0:01:57]} 37. f3 {[%emt 0:00:31]} Kb6 {[%emt 0:01:00]} 38. fxe4 {[%emt 0:01:01]} dxe4 {[%emt 0:00:32] [#]} 39. Nb4 $1 {[%emt 0:06:36]} cxb4 {[%emt 0:01:05]} 40. cxb4 {[%emt 0:00:00]} Kb5 {[%emt 0:00:12] [#]} 41. g4 $18 {[%emt 0:00:32]} h4 {[%emt 0:00:45]} 42. g5 {[%emt 0:00:02]} Kc4 {[%emt 0:00:03]} 43. Kf2 {[%emt 0:00:21]} Kc3 {[%emt 0:00:31]} 44. b5 {[%emt 0:00:15]} h3 {[%emt 0:00:26]} 45. b6 {[%emt 0:00:08]} h2 {[%emt 0:00:09]} 46. Kg2 {[%emt 0:00:03]} Kd2 {[%emt 0:00:16]} 47. b7 {[%emt 0:00:20]} Kxe3 {[%emt 0:00:27]} 48. b8=Q {[%emt 0:00:29]} 1-0

[Event "ROU-ch Men 2018"]
[Site "Olanesti"]
[Date "2018.05.16"]
[Round "3"]
[White "Cenusa, Mihai"]
[Black "Ciorgovean, Iustin"]
[Result "0-1"]
[ECO "B50"]
[WhiteElo "1819"]
[BlackElo "2169"]
[Annotator "NA"]
[PlyCount "96"]
[EventDate "2018.??.??"]
[EventType "swiss"]
[EventCountry "ROU"]
[SourceTitle "playchess.com"]
[Source "ChessBase"]
[SourceQuality "1"]
[TimeControl "40/5400+30:1800+30"]

1. e4 {[%emt 0:00:00]} c5 {[%emt 0:00:05]} 2. Nf3 {[%emt 0:00:00]} d6 {[%emt 0:00:05]} 3. c4 {[%emt 0:00:00]} Bg4 {[%emt 0:00:46]} 4. Nc3 {[%emt 0:00:12]} Nc6 {[%emt 0:01:49] LiveBook: 6 Games} 5. Qa4 {[%emt 0:00:19]} (5. d3 $11) 5... Bxf3 {[%emt 0:16:27]} 6. gxf3 {[%emt 0:00:11]} Qd7 {[%emt 0:01:01]} 7. d3 {[%emt 0:03:56]} Nd4 {[%emt 0:02:46]} 8. Qd1 {[%emt 0:02:10]} g6 {[%emt 0:00:31]} 9. Be3 {[%emt 0:00:10]} Bg7 {[%emt 0:00:09]} 10. h4 {[%emt 0:02:07]} h5 {[%emt 0:00:44]} 11. Rb1 {[%emt 0:01:51]} e6 {[%emt 0:19:40]} 12. Bh3 {[%emt 0:01:25]} Ne7 {[%emt 0:03:48]} 13. Bxd4 {[%emt 0:02:39]} Bxd4 {[%emt 0:00:17]} 14. Ne2 {[%emt 0:00:15]} Bf6 {[%emt 0:02:33]} 15. d4 {[%emt 0:03:19]} cxd4 {[%emt 0:06:48]} 16. Nxd4 {[%emt 0:00:33]} a6 {[%emt 0:01:49]} 17. Bf1 {[%emt 0:02:34]} Rc8 {[%emt 0:02:41]} 18. b3 {[%emt 0:02:26]} O-O {[%emt 0:03:46]} 19. f4 {[%emt 0:01:24]} Qc7 {[%emt 0:06:38]} 20. Qd2 {[%emt 0:05:38]} Qc5 {[%emt 0:13:01]} 21. Rd1 {[%emt 0:03:28]} Rfd8 {[%emt 0:01:21]} 22. Nf3 {[%emt 0:00:21]} b5 {[%emt 0:00:54]} 23. Be2 {[%emt 0:06:22]} bxc4 {[%emt 0:04:19]} 24. bxc4 {[%emt 0:00:14]} Rb8 {[%emt 0:00:19]} 25. e5 $2 {[%emt 0:02:55]} (25. Kf1 $17) 25... dxe5 {[%emt 0:00:41]} 26. Qxd8+ {[%emt 0:00:08]} Rxd8 {[%emt 0:00:01]} 27. Rxd8+ {[%emt 0:00:09]} Kg7 {[%emt 0:00:04]} 28. fxe5 {[%emt 0:00:50]} Bxe5 {[%emt 0:01:21]} 29. Rd7 Bf6 {[%emt 0:01:09]} 30. O-O {[%emt 0:09:49]} e5 {[%emt 0:00:21]} 31. Rb1 {[%emt 0:13:26]} e4 {[%emt 0:00:46]} 32. Ng5 {[%emt 0:07:11]} e3 {[%emt 0:02:09]} 33. Ne4 {[%emt 0:02:26]} Qf5 {[%emt 0:00:39]} 34. Nxf6 {[%emt 0:02:37]} Qxb1+ {[%emt 0:00:59]} 35. Rd1 {[%emt 0:00:09]} Qf5 {[%emt 0:00:19]} 36. Ne8+ {[%emt 0:02:36]} Kf8 {[%emt 0:00:40]} 37. fxe3 {[%emt 0:02:08]} Kxe8 {[%emt 0:00:07]} 38. Rd6 {[%emt 0:01:43]} a5 {[%emt 0:00:59]} 39. Ra6 {[%emt 0:01:35]} Qc5 {[%emt 0:00:48]} 40. Ra8+ {[%emt 0:00:00]} Kd7 {[%emt 0:00:18]} 41. Rf8 {[%emt 0:11:59]} Qxe3+ {[%emt 0:01:40]} 42. Kf1 {[%emt 0:00:06]} Nf5 {[%emt 0:01:18]} 43. Rxf7+ {[%emt 0:00:51]} Ke8 $19 {[%emt 0:00:13]} 44. Rxf5 {[%emt 0:00:18]} gxf5 {[%emt 0:00:07]} 45. Bxh5+ {[%emt 0:00:19]} Ke7 {[%emt 0:00:05]} 46. Kg2 {[%emt 0:02:23]} Qf4 {[%emt 0:01:29]} 47. c5 {[%emt 0:00:56]} Qc4 {[%emt 0:00:31]} 48. Kg3 {[%emt 0:00:24]} Qxc5 {[%emt 0:00:10]} 0-1

[Event "ROU-ch Men 2018"]
[Site "Olanesti"]
[Date "2018.05.16"]
[Round "3"]
[White "Morariu, Daniel"]
[Black "Albu, George"]
[Result "1-0"]
[ECO "B41"]
[WhiteElo "1656"]
[BlackElo "2038"]
[Annotator "NA"]
[PlyCount "57"]
[EventDate "2018.??.??"]
[EventType "swiss"]
[EventCountry "ROU"]
[SourceTitle "playchess.com"]
[Source "ChessBase"]
[SourceQuality "1"]
[TimeControl "40/5400+30:1800+30"]

1. e4 {[%emt 0:00:00]} c5 {[%emt 0:03:25]} 2. Nf3 {[%emt 0:00:00]} e6 {[%emt 0:00:08]} 3. d4 {[%emt 0:00:30]} cxd4 {[%emt 0:00:07]} 4. Nxd4 {[%emt 0:00:09]} a6 {[%emt 0:00:06]} 5. c4 {[%emt 0:00:30]} Qc7 {[%emt 0:00:06]} 6. Nc3 {[%emt 0:00:26]} Nf6 {[%emt 0:00:13]} 7. a3 {[%emt 0:00:37]} d6 {[%emt 0:00:12]} 8. Be2 {[%emt 0:03:02] B41: Sicilian: Kan Variation: 5 c4} Nbd7 {[%emt 0:00:10]} 9. Be3 {[%emt 0:00:22]} b6 {[%emt 0:00:18]} 10. O-O {[%emt 0:01:21] LiveBook: 9 Games} Bb7 {[%emt 0:00:04]} 11. f3 {[%emt 0:00:16]} h5 {[%emt 0:00:11]} (11... Be7 12. Rc1 O-O 13. Qd2 Rac8 14. Rfd1 Qb8 15. b4 Bd8 16. Kh1 {1-0 (72) Rambaldi,F (2544)-Svidler,P (2759) Biel 2016}) 12. h4 $146 {[%emt 0:09:16]} ({Predecessor:} 12. Qd2 Be7 13. Rfc1 Rc8 14. b4 Qb8 15. Bf1 h4 {0-1 (31) Schut,L (2286)-David,A (2622) Paleochora 2010}) 12... Be7 {[%emt 0:01:14]} 13. Qe1 {[%emt 0:01:44]} O-O {[%emt 0:01:49]} 14. Qg3 {[%emt 0:02:06]} Rfe8 {[%emt 0:01:51]} 15. Rac1 {[%emt 0:04:22]} Rac8 {[%emt 0:02:11]} 16. Rfd1 {[%emt 0:08:09]} Qb8 $14 {[%emt 0:00:43]} 17. Bf4 {[%emt 0:13:59]} Kh8 {[%emt 0:07:05]} 18. Nc2 {[%emt 0:04:20]} Ne5 {[%emt 0:03:29]} 19. Ne3 {[%emt 0:01:46]} Nfd7 {[%emt 0:17:57]} 20. Bxe5 {[%emt 0:10:07]} Nxe5 {[%emt 0:01:57]} 21. f4 {[%emt 0:00:15]} Nc6 {[%emt 0:16:54]} 22. Bxh5 {[%emt 0:01:54]} g6 {[%emt 0:00:14]} 23. Bxg6 {[%emt 0:20:58]} Rg8 {[%emt 0:04:56]} 24. h5 {[%emt 0:00:20]} fxg6 {[%emt 0:16:37]} 25. hxg6 {[%emt 0:00:14]} Kg7 {[%emt 0:00:07]} 26. Qh3 {[%emt 0:01:08]} Kxg6 {[%emt 0:07:14]} 27. Qxe6+ {[%emt 0:00:19]} Kh7 {[%emt 0:00:25]} 28. Rd5 {[%emt 0:01:29]} Rg6 {[%emt 0:00:53]} 29. Qf7+ {[%emt 0:01:06]} 1-0

[Event "ROU-ch Men 2018"]
[Site "Olanesti"]
[Date "2018.05.17"]
[Round "4"]
[White "Secheres, Adrian-Simion"]
[Black "Paraschiv, Paul-Alexandru"]
[Result "1-0"]
[ECO "E32"]
[WhiteElo "2404"]
[BlackElo "2131"]
[Annotator "ChessBase"]
[PlyCount "55"]
[EventDate "2018.??.??"]
[EventType "swiss"]
[EventCountry "ROU"]
[SourceTitle "playchess.com"]
[Source "ChessBase"]
[SourceQuality "1"]
[TimeControl "40/5400+30:1800+30"]

1. d4 {[%emt 0:00:00]} Nf6 {[%emt 0:00:12]} 2. c4 {[%emt 0:00:04]} e6 {[%emt 0:00:06]} 3. Nc3 {[%emt 0:00:16]} Bb4 {[%emt 0:00:33]} 4. Qc2 {[%emt 0:00:17]} O-O {[%emt 0:01:50]} 5. Nf3 {[%emt 0:00:22]} b6 {[%emt 0:00:27]} 6. e4 {[%emt 0:00:39]} Bxc3+ {[%emt 0:02:15]} 7. bxc3 {[%emt 0:00:08]} Ne8 {[%emt 0:01:02]} 8. Bd3 {[%emt 0:02:17]} h6 {[%emt 0:05:45]} 9. a4 {[%emt 0:04:49]} c5 {[%emt 0:04:45]} 10. a5 {[%emt 0:03:43]} Bb7 {[%emt 0:01:29]} 11. O-O {[%emt 0:02:23]} d6 {[%emt 0:02:04]} 12. Qe2 {[%emt 0:03:09]} Qc8 {[%emt 0:03:48]} 13. d5 {[%emt 0:05:58]} e5 {[%emt 0:03:04]} 14. Nh4 {[%emt 0:02:17]} Kh7 {[%emt 0:11:04]} 15. f4 {[%emt 0:04:08]} Qd8 {[%emt 0:02:22]} 16. Nf5 {[%emt 0:04:56]} Nd7 {[%emt 0:06:43]} 17. Qh5 {[%emt 0:06:29]} Ndf6 {[%emt 0:04:34]} 18. Qh4 {[%emt 0:02:10]} Ng8 {[%emt 0:02:38]} 19. Qg3 {[%emt 0:01:54]} g6 {[%emt 0:06:54]} 20. fxe5 {[%emt 0:01:22]} dxe5 {[%emt 0:01:48]} 21. Qxe5 {[%emt 0:02:19]} f6 {[%emt 0:01:58]} 22. Qf4 {[%emt 0:02:49]} gxf5 {[%emt 0:05:48]} 23. Qxf5+ {[%emt 0:00:07]} Kh8 {[%emt 0:00:05]} 24. e5 {[%emt 0:00:06]} Qe7 {[%emt 0:00:26]} 25. e6 {[%emt 0:03:12]} Nd6 {[%emt 0:07:28]} 26. Qh5 {[%emt 0:01:15]} f5 {[%emt 0:01:03]} 27. Bf4 {[%emt 0:01:11]} Rf6 {[%emt 0:06:11]} 28. a6 {[%emt 0:01:54]} 1-0

[Event "ROU-ch Men 2018"]
[Site "Olanesti"]
[Date "2018.05.17"]
[Round "4"]
[White "Dobre, Claudiu-Cristian"]
[Black "Morariu, Daniel"]
[Result "1-0"]
[ECO "A17"]
[WhiteElo "2393"]
[BlackElo "1656"]
[Annotator "NA"]
[PlyCount "89"]
[EventDate "2018.??.??"]
[EventType "swiss"]
[EventCountry "ROU"]
[SourceTitle "playchess.com"]
[Source "ChessBase"]
[SourceQuality "1"]
[TimeControl "40/5400+30:1800+30"]

1. c4 {[%emt 0:00:00]} Nf6 {[%emt 0:04:23]} 2. Nc3 {[%emt 0:00:01]} e6 {[%emt 0:00:31]} 3. Nf3 {[%emt 0:00:18]} b6 {[%emt 0:03:45]} 4. e4 {[%emt 0:02:32]} Bb7 {[%emt 0:04:31]} 5. Qe2 {[%emt 0:19:13]} d6 {[%emt 0:13:06] LiveBook: 3 Games A17: English Opening: 1...Nf6 with ...Bb4} (5... c5 6. e5 Ng8 7. d4 cxd4 8. Nxd4 Nc6 9. Nxc6 Bxc6 10. h4 f6 11. Rh3 fxe5 12. Qh5+ g6 13. Qxe5 {1-0 (37) Hakobyan,A (2497)-Oparin,G (2622) Batumi 2018}) 6. d4 {[%emt 0:01:45]} Be7 {[%emt 0:01:22]} 7. g3 {[%emt 0:03:23]} Nbd7 $146 {[%emt 0:05:53]} ({Predecessor:} 7... O-O 8. Bg2 c5 9. e5 Nfd7 10. exd6 Bxd6 11. Ne4 Be7 12. O-O Nf6 13. Nxf6+ Bxf6 14. dxc5 bxc5 {½-½ (31) Vaganian,R-Polugaevsky,L Moscow (Russia) 1974}) 8. Bh3 {[%emt 0:02:37]} O-O {[%emt 0:05:48]} 9. O-O {[%emt 0:02:00]} Ne8 {[%emt 0:16:15]} 10. Ne1 {[%emt 0:08:40]} e5 {[%emt 0:06:08]} 11. d5 {[%emt 0:00:38]} Nc5 {[%emt 0:04:22]} 12. b4 {[%emt 0:01:33]} Na6 {[%emt 0:00:19]} 13. Nd3 {[%emt 0:02:33]} Bc8 {[%emt 0:00:51]} 14. Bxc8 {[%emt 0:00:37]} Qxc8 {[%emt 0:00:14]} 15. f4 {[%emt 0:02:59]} exf4 {[%emt 0:10:08]} 16. gxf4 {[%emt 0:00:45]} f5 {[%emt 0:00:24]} 17. e5 {[%emt 0:16:34]} dxe5 {[%emt 0:01:16]} 18. b5 {[%emt 0:00:10]} ({Much worse is} 18. Nxe5 $6 Bxb4 19. Bb2 Nf6 $11) 18... Nc5 {[%emt 0:11:41]} 19. fxe5 {[%emt 0:00:09]} Nxd3 {[%emt 0:00:56]} 20. Qxd3 {[%emt 0:00:14]} g6 $16 {[%emt 0:01:04]} 21. Be3 {[%emt 0:10:06]} Ng7 {[%emt 0:00:38]} 22. Ne2 {[%emt 0:02:40]} g5 {[%emt 0:00:36]} 23. Nd4 {[%emt 0:01:15]} f4 {[%emt 0:02:16]} 24. Bd2 {[%emt 0:06:29]} Bc5 {[%emt 0:00:15]} 25. Kh1 {[%emt 0:01:06]} Qg4 {[%emt 0:01:59]} 26. Rg1 {[%emt 0:06:10]} Qh5 {[%emt 0:00:03]} 27. Rg2 {[%emt 0:08:06]} g4 {[%emt 0:02:34]} 28. Rag1 {[%emt 0:00:03]} g3 {[%emt 0:00:25]} 29. Bxf4 {[%emt 0:00:55]} Rxf4 {[%emt 0:00:26]} 30. Qxg3 {[%emt 0:00:47]} Rf7 {[%emt 0:00:44]} 31. Ne6 {[%emt 0:00:33]} Bxg1 {[%emt 0:01:00]} 32. Nxg7 {[%emt 0:00:09]} Qg6 {[%emt 0:00:49]} 33. Qe1 {[%emt 0:00:50]} Qxg7 {[%emt 0:00:56]} 34. Qxg1 {[%emt 0:00:21]} Raf8 {[%emt 0:00:36]} 35. e6 {[%emt 0:00:30]} Re7 {[%emt 0:00:53]} 36. Rxg7+ {[%emt 0:00:40]} Rxg7 {[%emt 0:00:07]} 37. Qe1 {[%emt 0:00:10]} Kh8 {[%emt 0:00:55]} 38. a4 {[%emt 0:00:45]} Kg8 {[%emt 0:00:39]} 39. a5 {[%emt 0:00:31]} Re8 {[%emt 0:00:32]} 40. axb6 {[%emt 0:00:00]} axb6 {[%emt 0:00:20]} 41. c5 {[%emt 0:02:25]} Rg6 {[%emt 0:20:50]} 42. cxb6 {[%emt 0:06:00]} cxb6 {[%emt 0:00:50]} 43. h4 {[%emt 0:04:28]} h6 {[%emt 0:03:29]} 44. Qe4 {[%emt 0:10:55]} Kh7 {[%emt 0:01:16]} 45. h5 {[%emt 0:00:15]} 1-0